fUST/lending_fUST_20250101
["ID","MTS","AMOUNT","RATE_DAILY","PERIOD"]
[347342475,1735713044225,-500.0,0.00019178,2]
[347342477,1735713044234,-500.0,0.00019178,2]
[347342479,1735713044243,-500.0,0.00019178,2]
[347342481,1735713044253,-500.0,0.00019178,2]
[347342483,1735713044262,-151.0,0.00019178,2]
[347342485,1735713044271,-510.35238592,0.00019178,2]
[347342487,1735713044280,-182.09454652,0.00019178,2]
[347342489,1735713044290,-151.0,0.00019178,2]
[347342491,1735713044299,-271.847148,0.00019178,2]
[347342492,1735713044308,-500.0,0.00019178,2]
[347342494,1735713044318,-500.75587062,0.00019178,2]
[347342496,1735713044328,-501.21851865,0.00019178,2]
[347342498,1735713044337,-500.0,0.00019178,2]
[347342500,1735713044346,-510.86,0.00019178,2]
[347342502,1735713044355,-501.70743054,0.00019178,2]
[347342504,1735713044364,-500.0,0.00019178,2]
[347342506,1735713044374,-500.0,0.00019178,2]
[347342508,1735713044384,-504.53762035,0.00019178,2]
[347342510,1735713044393,-502.55871029,0.00019178,2]
[347342512,1735713044404,-500.0,0.00019178,2]
[347342514,1735713044413,-500.0,0.00019178,2]
[347342516,1735713044423,-502.32896939,0.00019178,2]
[347342518,1735713044434,-500.0,0.00019178,2]
[347342520,1735713044444,-500.0,0.00019178,2]
[347342522,1735713044453,-500.0,0.00019178,2]
[347342524,1735713044463,-500.0,0.00019178,2]
[347342526,1735713044472,-500.0,0.00019178,2]
[347342527,1735713044481,-500.0,0.00019178,2]
[347342529,1735713044491,-500.0,0.00019178,2]
[347342531,1735713044500,-1721.35,0.00019178,2]
[347342533,1735713044510,-500.0,0.00019178,2]
[347342535,1735713044519,-570.07649554,0.00019178,2]
[347342537,1735713044528,-937.55,0.00019178,2]
[347342539,1735713044538,-509.82838436,0.00019178,2]
[347342541,1735713044547,-1882.97,0.00019178,2]
[347342543,1735713044557,-500.86027764,0.00019178,2]
[347342545,1735713044566,-507.99374473,0.00019178,2]
[347342547,1735713044575,-500.0,0.00019178,2]
[347342549,1735713044585,-500.0,0.00019178,2]
[347342551,1735713044596,-500.0,0.00019178,2]
[347342552,1735713044605,-501.74896229,0.00019178,2]
[347342553,1735713044614,-500.0,0.00019178,2]
[347342554,1735713044623,-500.0,0.00019178,2]
[347342555,1735713044632,-500.0,0.00019178,2]
[347342556,1735713044641,-500.0,0.00019178,2]
[347342557,1735713044650,-500.0,0.00019178,2]
[347342558,1735713044660,-151.0,0.00019178,2]
[347342559,1735713044669,-151.0,0.00019178,2]
[347342560,1735713044679,-500.0,0.00019178,2]
[347342561,1735713044689,-604.16,0.00019178,2]
[347342562,1735713044699,-500.0,0.00019178,2]
[347342563,1735713044708,-500.0,0.00019178,2]
[347342564,1735713044717,-500.0,0.00019178,2]
[347342565,1735713044727,-500.0,0.00019178,2]
[347342566,1735713044736,-509.3195872,0.00019178,2]
[347342567,1735713044745,-500.0,0.00019178,2]
[347342568,1735713044755,-500.0,0.00019178,2]
[347342569,1735713044764,-500.0,0.00019178,2]
[347342570,1735713044773,-500.0,0.00019178,2]
[347342571,1735713044782,-504.58594195,0.00019178,2]
[347342572,1735713044792,-500.0,0.00019178,2]
[347342573,1735713044801,-839.42,0.00019178,2]
[347342574,1735713044811,-502.49564325,0.00019178,2]
[347342575,1735713044820,-500.0,0.00019178,2]
[347342576,1735713044830,-500.0,0.00019178,2]
[347342577,1735713044839,-500.0,0.00019178,2]
[347342578,1735713044851,-309.34399912,0.00019178,2]
[347342579,1735713044861,-500.0,0.00019178,2]
[347342580,1735713044870,-500.0,0.00019178,2]
[347342581,1735713044879,-500.0,0.00019178,2]
[347342583,1735713044888,-537.31,0.00019178,2]
[347342585,1735713044897,-500.0,0.00019178,2]
[347342587,1735713044909,-500.0,0.00019178,2]
[347342589,1735713044919,-500.0,0.00019178,2]
[347342591,1735713044928,-500.0,0.00019178,2]
[347342593,1735713044939,-500.0,0.00019178,2]
[347342595,1735713044948,-500.0,0.00019178,2]
[347342597,1735713044957,-500.0,0.00019178,2]
[347342599,1735713044967,-500.0,0.00019178,2]
[347342601,1735713044976,-510.75388692,0.00019178,2]
[347342603,1735713044985,-500.0,0.00019178,2]
[347342605,1735713044994,-500.0,0.00019178,2]
[347342607,1735713045003,-594.99617803,0.00019178,2]
[347342609,1735713045013,-500.0,0.00019178,2]
[347342611,1735713045022,-501.49771653,0.00019178,2]
[347342613,1735713045031,-197.80919494,0.00019178,2]
[347342615,1735713045041,-500.0,0.00019178,2]
[347342617,1735713045054,-513.31412089,0.00019178,2]
[347342619,1735713045063,-500.0,0.00019178,2]
[347342621,1735713045073,-500.0,0.00019178,2]
[347342623,1735713045083,-500.0,0.00019178,2]
[347342625,1735713045093,-500.0,0.00019178,2]
[347342627,1735713045103,-504.48155543,0.00019178,2]
[347342629,1735713045112,-500.0,0.00019178,2]
[347342631,1735713045121,-526.43082226,0.00019178,2]
[347342633,1735713045130,-501.3544652,0.00019178,2]
[347342635,1735713045140,-500.0,0.00019178,2]
[347342637,1735713045149,-501.7019778,0.00019178,2]
[347342639,1735713045159,-502.2142125,0.00019178,2]
[347342641,1735713045168,-502.75366882,0.00019178,2]
[347342643,1735713045177,-500.0,0.00019178,2]
[347342645,1735713045187,-517.21731126,0.00019178,2]
[347342647,1735713045196,-500.0,0.00019178,2]
[347342649,1735713045205,-159.28117588,0.00019178,2]
[347342668,1735713045382,-340.71882412,0.00019178,2]
[347342670,1735713045392,-8.1737416,0.00019178,2]
[347342672,1735713045404,-491.8262584,0.00019178,2]
[347342675,1735713045414,-776.69,0.00019178,2]
[347342677,1735713045423,-417.19011839,0.00019178,2]
[347342679,1735713045433,-247.64355172,0.00019178,2]
[347342681,1735713045444,-237.60441608,0.00019178,2]
[347343232,1735713213717,280.73744,0.00013973,2]
[347343283,1735714207341,266.700568,0.00013973,2]
[347343297,1735714232782,-417.19152418,0.00017679,2]
[347343298,1735714232791,-583.003,0.0001822,2]
[347343299,1735714232801,-600.0,0.00018937,2]
[347343300,1735714232811,-394.0,0.00018957,2]
[347343301,1735714232820,-590.0,0.00018957,2]
[347343302,1735714232830,-261.5,0.00019034,4]
[347343303,1735714232838,-300.0,0.00019077,2]
[347343304,1735714232847,-1579.11785229,0.00019078,2]
[347343305,1735714232857,-484.61508885,0.00019078,2]
[347343306,1735714232866,-288.32515876,0.00019078,2]
[347343307,1735714232875,-1070.47176128,0.00019134,2]
[347343308,1735714232885,-6531.22185567,0.00019178,2]
[347343310,1735714232895,-500.0,0.00019178,2]
[347343312,1735714232904,-500.0,0.00019178,2]
[347343314,1735714232913,-151.0,0.00019178,2]
[347343315,1735714232922,-291.795054,0.00019178,2]
[347343316,1735714232931,-500.0,0.00019178,2]
[347343317,1735714232941,-546.08,0.00019178,2]
[347343318,1735714232950,-520.55,0.00019178,2]
[347343319,1735714232960,-520.55,0.00019178,2]
[347343320,1735714232969,-520.55,0.00019178,2]
[347343321,1735714232978,-520.55,0.00019178,2]
[347343322,1735714232987,-520.55,0.00019178,2]
[347343323,1735714232997,-520.55,0.00019178,2]
[347343324,1735714233007,-520.55,0.00019178,2]
[347343325,1735714233016,-520.55,0.00019178,2]
[347343326,1735714233025,-520.55,0.00019178,2]
[347343327,1735714233035,-520.55,0.00019178,2]
[347343328,1735714233045,-520.55,0.00019178,2]
[347343329,1735714233055,-520.55,0.00019178,2]
[347343330,1735714233207,-520.55,0.00019178,2]
[347343331,1735714233217,-520.55,0.00019178,2]
[347343332,1735714233227,-520.55,0.00019178,2]
[347343333,1735714233237,-520.55,0.00019178,2]
[347343334,1735714233246,-520.55,0.00019178,2]
[347343335,1735714233256,-520.55,0.00019178,2]
[347343336,1735714233265,-520.55,0.00019178,2]
[347343337,1735714233275,-520.55,0.00019178,2]
[347343338,1735714233284,-520.55,0.00019178,2]
[347343339,1735714233294,-520.55,0.00019178,2]
[347343340,1735714233304,-520.55,0.00019178,2]
[347343341,1735714233314,-520.7,0.00019178,2]
[347343342,1735714233323,-151.0,0.00019178,2]
[347343343,1735714233333,-151.0,0.00019178,2]
[347343344,1735714233343,-151.0,0.00019178,2]
[347343345,1735714233353,-151.0,0.00019178,2]
[347343346,1735714233363,-151.0,0.00019178,2]
[347343347,1735714233372,-151.0,0.00019178,2]
[347343348,1735714233381,-151.0,0.00019178,2]
[347343349,1735714233401,-151.0,0.00019178,2]
[347343350,1735714233412,-151.0,0.00019178,2]
[347343351,1735714233422,-151.0,0.00019178,2]
[347343352,1735714233432,-194.528282,0.00019178,2]
[347343353,1735714233443,-985.89,0.00019178,2]
[347343354,1735714233453,-151.0,0.00019178,2]
[347343355,1735714233463,-151.0,0.00019178,2]
[347343356,1735714233473,-151.0,0.00019178,2]
[347343357,1735714233483,-500.0,0.00019178,2]
[347343358,1735714233494,-151.0,0.00019178,2]
[347343359,1735714233504,-273.7717,0.00019178,2]
[347343360,1735714233514,-151.0,0.00019178,2]
[347343361,1735714233525,-285.432202,0.00019178,2]
[347343362,1735714233536,-151.0,0.00019178,2]
[347343363,1735714233546,-151.0,0.00019178,2]
[347343364,1735714233556,-151.0,0.00019178,2]
[347343365,1735714233567,-177.278626,0.00019178,2]
[347343366,1735714233577,-500.0,0.00019178,2]
[347343367,1735714233587,-7469.14,0.00019178,2]
[347343368,1735714233597,-500.0,0.00019178,2]
[347343369,1735714233608,-915.36,0.00019178,2]
[347343370,1735714233619,-3091.46,0.00019178,2]
[347343371,1735714233629,-504.73341727,0.00019178,2]
[347343372,1735714233639,-506.51903146,0.00019178,2]
[347343373,1735714233648,-500.0,0.00019178,2]
[347343374,1735714233659,-358.61750998,0.00019178,2]
[347343375,1735714233669,-27.77870376,0.00019178,2]
[347343430,1735714238663,-1076.11129624,0.00019178,2]
[347343432,1735714238672,-500.0,0.00019178,2]
[347343434,1735714238682,-500.0,0.00019178,2]
[347343436,1735714238690,-500.0,0.00019178,2]
[347343438,1735714238700,-504.70799912,0.00019178,2]
[347343440,1735714238709,-365.73285434,0.00019178,2]
[347343442,1735714238718,-369.6719459,0.00019178,2]
[347343821,1735714243723,-130.3280541,0.00019178,2]
[347343823,1735714243733,-500.0,0.00019178,2]
[347343825,1735714243742,-151.0,0.00019178,2]
[347343827,1735714243751,-151.0,0.00019178,2]
[347343829,1735714243760,-151.0,0.00019178,2]
[347343831,1735714243770,-151.0,0.00019178,2]
[347343833,1735714243779,-151.0,0.00019178,2]
[347343835,1735714243788,-31.49017198,0.00019178,2]
[347343840,1735714243826,-119.50982802,0.00019178,2]
[347343842,1735714243835,-151.0,0.00019178,2]
[347343844,1735714243844,-151.0,0.00019178,2]
[347343846,1735714243853,-151.0,0.00019178,2]
[347343848,1735714243863,-151.0,0.00019178,2]
[347343850,1735714243872,-151.0,0.00019178,2]
[347343852,1735714243881,-151.0,0.00019178,2]
[347343855,1735714243890,-151.0,0.00019178,2]
[347343857,1735714243900,-281.463416,0.00019178,2]
[347343858,1735714243910,-501.46449156,0.00019178,2]
[347343860,1735714243919,-500.0,0.00019178,2]
[347343863,1735714243928,-500.0,0.00019178,2]
[347343865,1735714243937,-501.58521534,0.00019178,2]
[347343867,1735714243947,-500.0,0.00019178,2]
[347343869,1735714243956,-505.70499141,0.00019178,2]
[347343871,1735714243966,-500.0,0.00019178,2]
[347343872,1735714243976,-500.0,0.00019178,2]
[347343875,1735714243985,-500.0,0.00019178,2]
[347343877,1735714243995,-500.0,0.00019178,2]
[347343879,1735714244004,-481.0,0.00019178,2]
[347343881,1735714244014,-501.11327028,0.00019178,2]
[347343883,1735714244023,-500.0,0.00019178,2]
[347343885,1735714244033,-500.0,0.00019178,2]
[347343887,1735714244042,-500.35907247,0.00019178,2]
[347343889,1735714244052,-325.86014249,0.00019178,2]
[347343891,1735714244061,-500.0,0.00019178,2]
[347343893,1735714244070,-500.0,0.00019178,2]
[347343895,1735714244079,-505.68988319,0.00019178,2]
[347343897,1735714244089,-500.0,0.00019178,2]
[347343899,1735714244098,-500.0,0.00019178,2]
[347343901,1735714244107,-500.0,0.00019178,2]
[347343903,1735714244117,-500.0,0.00019178,2]
[347343905,1735714244127,-151.0,0.00019178,2]
[347343907,1735714244136,-280.607436,0.00019178,2]
[347343909,1735714244146,-554.04490056,0.00019178,2]
[347343911,1735714244155,-500.0,0.00019178,2]
[347343913,1735714244164,-500.0,0.00019178,2]
[347343915,1735714244174,-500.0,0.00019178,2]
[347343917,1735714244184,-500.0,0.00019178,2]
[347343919,1735714244194,-500.0,0.00019178,2]
[347343921,1735714244204,-500.0,0.00019178,2]
[347343923,1735714244214,-500.55086008,0.00019178,2]
[347343925,1735714244223,-500.0,0.00019178,2]
[347343928,1735714244243,-775.86,0.00019178,2]
[347343930,1735714244253,-500.0,0.00019178,2]
[347343932,1735714244263,-500.0,0.00019178,2]
[347343934,1735714244273,-503.31476938,0.00019178,2]
[347343936,1735714244283,-500.0,0.00019178,2]
[347343938,1735714244293,-502.75668061,0.00019178,2]
[347343941,1735714244303,-500.0,0.00019178,2]
[347343943,1735714244312,-500.0,0.00019178,2]
[347343945,1735714244322,-500.0,0.00019178,2]
[347343947,1735714244331,-500.0,0.00019178,2]
[347343949,1735714244341,-500.0,0.00019178,2]
[347343951,1735714244350,-500.0,0.00019178,2]
[347343953,1735714244360,-515.33889044,0.00019178,2]
[347343955,1735714244369,-286.20907818,0.00019178,2]
[347343957,1735714244379,-500.0,0.00019178,2]
[347343959,1735714244388,-1935.41,0.00019178,2]
[347343961,1735714244398,-500.0,0.00019178,2]
[347343963,1735714244409,-1019.17559185,0.00019178,2]
[347343965,1735714244419,-500.0,0.00019178,2]
[347343967,1735714244429,-500.0,0.00019178,2]
[347343986,1735714244602,-500.0,0.00019178,2]
[347343988,1735714244612,-507.97583381,0.00019178,2]
[347343990,1735714244621,-500.0,0.00019178,2]
[347343992,1735714244631,-501.61557576,0.00019178,2]
[347343994,1735714244640,-184.152,0.00019178,2]
[347343996,1735714244649,-504.46686537,0.00019178,2]
[347343998,1735714244658,-500.53019277,0.00019178,2]
[347344000,1735714244668,-500.64921296,0.00019178,2]
[347344002,1735714244678,-500.0,0.00019178,2]
[347344004,1735714244687,-500.0,0.00019178,2]
[347344006,1735714244696,-500.0,0.00019178,2]
[347344008,1735714244706,-503.47803196,0.00019178,2]
[347344010,1735714244715,-585.33730994,0.00019178,2]
[347344012,1735714244725,-500.0,0.00019178,2]
[347344014,1735714244735,-619.88,0.00019178,2]
[347344016,1735714244744,-500.0,0.00019178,2]
[347344018,1735714244755,-645.70696879,0.00019178,2]
[347344020,1735714244764,-151.0,0.00019178,2]
[347344022,1735714244774,-249.756229,0.00019178,2]
[347344024,1735714244784,-501.16183612,0.00019178,2]
[347344027,1735714244794,-501.3874353,0.00019178,2]
[347344029,1735714244803,-500.0,0.00019178,2]
[347344031,1735714244812,-501.35676878,0.00019178,2]
[347344033,1735714244822,-500.0,0.00019178,2]
[347344035,1735714244831,-503.23934865,0.00019178,2]
[347344037,1735714244841,-500.0,0.00019178,2]
[347344039,1735714244850,-502.16833147,0.00019178,2]
[347344041,1735714244861,-500.0,0.00019178,2]
[347344043,1735714244870,-500.69486421,0.00019178,2]
[347344045,1735714244879,-867.5,0.00019178,2]
[347344047,1735714244889,-500.0,0.00019178,2]
[347344049,1735714244899,-500.0,0.00019178,2]
[347344051,1735714244908,-509.16099277,0.00019178,2]
[347344053,1735714244918,-500.0,0.00019178,2]
[347344055,1735714244927,-356.40478486,0.00019178,2]
[347344060,1735714244965,-157.90597243,0.00019178,2]
[347344062,1735714244974,-496.5280401,0.00019178,2]
[347344064,1735714244984,-500.0,0.00019178,2]
[347344066,1735714244993,-500.0,0.00019178,2]
[347344068,1735714245002,-301.58501876,0.00019178,2]
[347344978,1735715195060,271.709965,0.00013973,2]
[347345005,1735715431889,-300.0,0.00016636,2]
[347345006,1735715431899,-329.535881,0.00016804,2]
[347345007,1735715431908,-192.961538,0.00017789,2]
[347345008,1735715431918,-300.0,0.00017856,2]
[347345009,1735715431927,-10270.6825356,0.00017857,2]
[347345010,1735715431936,-323.07672591,0.0001802,2]
[347345011,1735715431945,-455.3486964,0.0001812,2]
[347345012,1735715431954,-558.619,0.0001822,2]
[347345013,1735715431967,-323.0767259,0.00018549,2]
[347345014,1735715431977,-394.0,0.00018957,2]
[347345015,1735715431986,-302.60665372,0.00019,2]
[347345016,1735715431995,-239.7,0.00019046,4]
[347345017,1735715432006,-6490.23562423,0.00019078,2]
[347345018,1735715432015,-323.0767259,0.00019078,2]
[347345019,1735715432024,-252.28451395,0.00019078,2]
[347345020,1735715432033,-3265.61092783,0.00019178,2]
[347345021,1735715432043,-500.0,0.00019178,2]
[347345022,1735715432053,-184.15203819,0.00019178,2]
[347345023,1735715432061,-501.13278867,0.00019178,2]
[347345024,1735715432071,-537.15,0.00019178,2]
[347345025,1735715432080,-505.05353048,0.00019178,2]
[347345026,1735715432089,-500.0,0.00019178,2]
[347345027,1735715432098,-485.08292697,0.00019178,2]
[347345028,1735715432108,-151.0,0.00019178,2]
[347345029,1735715432117,-151.0,0.00019178,2]
[347345030,1735715432126,-151.0,0.00019178,2]
[347345032,1735715432135,-247.515548,0.00019178,2]
[347345034,1735715432145,-13897.4,0.00019178,2]
[347345036,1735715432154,-594.05,0.00019178,2]
[347345038,1735715432164,-500.0,0.00019178,2]
[347345040,1735715432174,-2104.53,0.00019178,2]
[347345042,1735715432183,-500.0,0.00019178,2]
[347345044,1735715432193,-505.59554865,0.00019178,2]
[347345046,1735715432202,-500.0,0.00019178,2]
[347345047,1735715432211,-500.0,0.00019178,2]
[347345049,1735715432221,-503.63211598,0.00019178,2]
[347345051,1735715432231,-500.0,0.00019178,2]
[347345052,1735715432240,-500.70480862,0.00019178,2]
[347345053,1735715432250,-347.70230953,0.00019178,2]
[347345054,1735715432260,-215.12974105,0.00019178,2]
[347345056,1735715432289,-285.44881963,0.00019178,2]
[347345057,1735715432298,-257.10820037,0.00019178,2]
[347345074,1735715437863,-242.89179963,0.00019178,2]
[347345075,1735715437873,-502.05724719,0.00019178,2]
[347345076,1735715437883,-500.0,0.00019178,2]
[347345077,1735715437892,-500.0,0.00019178,2]
[347345078,1735715437902,-500.0,0.00019178,2]
[347345079,1735715437911,-500.0,0.00019178,2]
[347345080,1735715437921,-500.0,0.00019178,2]
[347345081,1735715437931,-562.17393061,0.00019178,2]
[347345082,1735715437940,-500.0,0.00019178,2]
[347345083,1735715437949,-500.0,0.00019178,2]
[347345084,1735715437960,-586.06,0.00019178,2]
[347345085,1735715437971,-203.63552155,0.00019178,2]
[347345086,1735715437980,-500.0,0.00019178,2]
[347345087,1735715437989,-500.0,0.00019178,2]
[347345088,1735715437998,-389.80675685,0.00019178,2]
[347345089,1735715438009,-500.0,0.00019178,2]
[347345090,1735715438018,-502.55802505,0.00019178,2]
[347345091,1735715438027,-509.96954932,0.00019178,2]
[347345092,1735715438037,-500.0,0.00019178,2]
[347345093,1735715438047,-500.0,0.00019178,2]
[347345094,1735715438056,-914.656076,0.00019178,2]
[347345095,1735715438065,-914.656076,0.00019178,2]
[347345096,1735715438075,-914.656076,0.00019178,2]
[347345097,1735715438085,-914.656076,0.00019178,2]
[347345098,1735715438095,-506.19,0.00019178,2]
[347345099,1735715438105,-914.656076,0.00019178,2]
[347345100,1735715438114,-914.656076,0.00019178,2]
[347345101,1735715438125,-914.656076,0.00019178,2]
[347345102,1735715438134,-914.656076,0.00019178,2]
[347345103,1735715438143,-914.656076,0.00019178,2]
[347345104,1735715438152,-914.656076,0.00019178,2]
[347345105,1735715438162,-914.656076,0.00019178,2]
[347345106,1735715438171,-914.656076,0.00019178,2]
[347345107,1735715438180,-914.656076,0.00019178,2]
[347345108,1735715438190,-914.656076,0.00019178,2]
[347345109,1735715438199,-914.656076,0.00019178,2]
[347345110,1735715438208,-914.656076,0.00019178,2]
[347345111,1735715438218,-914.656076,0.00019178,2]
[347345112,1735715438228,-914.656076,0.00019178,2]
[347345113,1735715438238,-914.656076,0.00019178,2]
[347345114,1735715438247,-914.65608062,0.00019178,2]
[347345115,1735715438256,-501.21826882,0.00019178,2]
[347345116,1735715438265,-501.11964132,0.00019178,2]
[347345117,1735715438274,-501.50010096,0.00019178,2]
[347345118,1735715438283,-500.0,0.00019178,2]
[347345119,1735715438292,-500.0,0.00019178,2]
[347345120,1735715438301,-501.04884037,0.00019178,2]
[347345121,1735715438310,-510.58528186,0.00019178,2]
[347345122,1735715438319,-501.5839754,0.00019178,2]
[347345123,1735715438328,-151.0,0.00019178,2]
[347345124,1735715438337,-237.446694,0.00019178,2]
[347345125,1735715438346,-500.0,0.00019178,2]
[347345126,1735715438356,-500.0,0.00019178,2]
[347345127,1735715438365,-502.07461373,0.00019178,2]
[347345128,1735715438374,-501.1948101,0.00019178,2]
[347345129,1735715438383,-331.35900184,0.00019178,2]
[347345130,1735715438392,-500.0,0.00019178,2]
[347345131,1735715438401,-500.0,0.00019178,2]
[347345132,1735715438411,-502.84160832,0.00019178,2]
[347345133,1735715438420,-505.41006994,0.00019178,2]
[347345134,1735715438429,-501.99820046,0.00019178,2]
[347345135,1735715438439,-517.04291397,0.00019178,2]
[347345136,1735715438448,-831.36,0.00019178,2]
[347345137,1735715438457,-500.0,0.00019178,2]
[347345138,1735715438467,-500.0,0.00019178,2]
[347345139,1735715438476,-513.48142683,0.00019178,2]
[347345140,1735715438485,-500.0,0.00019178,2]
[347345141,1735715438494,-500.0,0.00019178,2]
[347345142,1735715438503,-504.19126199,0.00019178,2]
[347345143,1735715438512,-500.0,0.00019178,2]
[347345144,1735715438522,-500.0,0.00019178,2]
[347345145,1735715438531,-500.0,0.00019178,2]
[347345146,1735715438540,-500.0,0.00019178,2]
[347345147,1735715438549,-500.0,0.00019178,2]
[347345148,1735715438558,-500.0,0.00019178,2]
[347345149,1735715438568,-500.0,0.00019178,2]
[347345150,1735715438577,-500.0,0.00019178,2]
[347345151,1735715438587,-500.0,0.00019178,2]
[347345152,1735715438596,-500.0,0.00019178,2]
[347345153,1735715438605,-504.65534667,0.00019178,2]
[347345154,1735715438615,-500.0,0.00019178,2]
[347345155,1735715438625,-500.0,0.00019178,2]
[347345156,1735715438634,-500.0,0.00019178,2]
[347345157,1735715438767,-500.0,0.00019178,2]
[347345158,1735715438777,-500.0,0.00019178,2]
[347345159,1735715438787,-500.0,0.00019178,2]
[347345160,1735715438796,-500.0,0.00019178,2]
[347345161,1735715438806,-500.0,0.00019178,2]
[347345162,1735715438815,-500.0,0.00019178,2]
[347345163,1735715438825,-500.0,0.00019178,2]
[347345164,1735715438834,-500.0,0.00019178,2]
[347345165,1735715438844,-957.35,0.00019178,2]
[347345166,1735715438854,-500.0,0.00019178,2]
[347345167,1735715438863,-2181.92,0.00019178,2]
[347345168,1735715438873,-500.0,0.00019178,2]
[347345169,1735715438882,-500.0,0.00019178,2]
[347345170,1735715438892,-500.0,0.00019178,2]
[347345171,1735715438901,-500.0,0.00019178,2]
[347345172,1735715438912,-500.0,0.00019178,2]
[347345173,1735715438921,-500.0,0.00019178,2]
[347345174,1735715438931,-500.0,0.00019178,2]
[347345175,1735715438940,-500.0,0.00019178,2]
[347345176,1735715438950,-500.0,0.00019178,2]
[347345177,1735715438960,-500.0,0.00019178,2]
[347345178,1735715438972,-153.2636411,0.00019178,2]
[347345179,1735715438981,-500.0,0.00019178,2]
[347345180,1735715438990,-500.0,0.00019178,2]
[347345181,1735715439001,-228.11078405,0.00019178,2]
[347345182,1735715439011,-500.84383172,0.00019178,2]
[347345183,1735715439020,-500.50368584,0.00019178,2]
[347345184,1735715439029,-500.0,0.00019178,2]
[347345185,1735715439039,-500.0,0.00019178,2]
[347345186,1735715439049,-500.0,0.00019178,2]
[347345187,1735715439058,-804.44,0.00019178,2]
[347345188,1735715439069,-500.0,0.00019178,2]
[347345189,1735715439077,-536.14206606,0.00019178,2]
[347345190,1735715439088,-578.80567872,0.00019178,2]
[347345191,1735715439097,-500.0,0.00019178,2]
[347345192,1735715439107,-500.0,0.00019178,2]
[347345193,1735715439116,-1653.79,0.00019178,2]
[347345194,1735715439125,-514.92,0.00019178,2]
[347345195,1735715439134,-500.0,0.00019178,2]
[347345196,1735715439143,-500.0,0.00019178,2]
[347345197,1735715439152,-500.0,0.00019178,2]
[347345198,1735715439162,-500.0,0.00019178,2]
[347345199,1735715439171,-507.34352652,0.00019178,2]
[347345200,1735715439180,-744.33,0.00019178,2]
[347345201,1735715439189,-500.0,0.00019178,2]
[347345202,1735715439199,-500.0,0.00019178,2]
[347345203,1735715439209,-500.0,0.00019178,2]
[347345204,1735715439220,-500.0,0.00019178,2]
[347345205,1735715439230,-588.52747935,0.00019178,2]
[347345206,1735715439240,-598.69037551,0.00019178,2]
[347345207,1735715439249,-542.77813823,0.00019178,2]
[347345208,1735715439259,-500.0,0.00019178,2]
[347345209,1735715439268,-500.0,0.00019178,2]
[347345210,1735715439277,-500.0,0.00019178,2]
[347345211,1735715439287,-760.84534634,0.00019178,2]
[347345257,1735715439870,-2712.04465366,0.00019178,2]
[347345259,1735715439880,-500.0,0.00019178,2]
[347345261,1735715439889,-500.0,0.00019178,2]
[347345263,1735715439899,-500.0,0.00019178,2]
[347345265,1735715439907,-500.0,0.00019178,2]
[347345267,1735715439917,-365.500001,0.00019178,2]
[347345269,1735715439926,-365.500001,0.00019178,2]
[347345271,1735715439936,-500.0,0.00019178,2]
[347345273,1735715439945,-365.500001,0.00019178,2]
[347345275,1735715439955,-365.500001,0.00019178,2]
[347345277,1735715439968,-500.0,0.00019178,2]
[347345279,1735715439979,-365.500001,0.00019178,2]